Cogmind - Beta 13 @@@ ROGUE MODE // 2024.04.05 @ 12:40:06 Player: writers.room Result: Destroyed by G-34 Mercenary with Small Laser Performance ------------- Evolutions (1) 500 Regions Visited (2) 400 Robots Destroyed (40) 200 Value Destroyed (845) 845 Prototype IDs (1) 20 Alien Tech Used (0) 0 Bonus (0) 0 TOTAL SCORE: 1965 Bonus ------- None Cogmind --------- Core Integrity 0/400 Matter 295/300 Energy 125/125 System Corruption 0% Temperature Cool (6) Movement Walking (190) Ox1 Location -9/Materials Parts ------- > --- POWER (1) -------- Light Ion Engine > --- PROPULSION (2) --- Aluminum Leg > --- UTILITY (4) ------ Medium Storage Unit Weight Redist. System Insulated Plating > --- WEAPON (2) ------- Improved Assault Rifle Mining Claw > --- INVENTORY (10) --- Light Ion Engine Light Ion Engine Actuator Array Actuator Array Actuator Array Actuator Array Faulty Improved Medium Laser Improved Medium Laser Improved Medium Laser Improved Assault Rifle Peak State ------------ > --- POWER ------------ Light Ion Engine > --- PROPULSION ------- Light Treads > --- UTILITY ---------- Medium Storage Unit Weight Redist. System Insulated Plating Insulated Plating > --- WEAPON ----------- Improved Assault Rifle Mining Claw > --- INVENTORY -------- Light Ion Engine Light Ion Engine Actuator Array Actuator Array Actuator Array Actuator Array Improved Medium Laser Improved Medium Laser Improved Medium Laser Improved Assault Rifle [Rating: 17] Favorites ----------- Power Ion Engine Engine Ion Engine Propulsion Aluminum Leg Treads Light Treads Leg Aluminum Leg Flight Unit Flight Unit Utility Light Armor Plating Device Weight Redist. System Storage Huge Storage Unit Protection Light Armor Plating Weapon Mining Claw Ballistic Gun Improved Assault Rifle Ballistic Cannon Light Cannon Slashing Weapon Mining Claw Build | -11 -10 -9 ------- Run | Yrd Mat Mat Slots Evolved 2 | . . 2 Power . | . . . Propulsion . | . . . Utility 2 | . . 2 Weapon . | . . . Parts Attached 33 | 2 8 23 Power 7 | . 1 6 Engine 7 | . 1 6 Core . | . . . Reactor . | . . . Propulsion 6 | 2 . 4 Treads 1 | . . 1 Leg 4 | 2 . 2 Wheel . | . . . Hover . | . . . Flight 1 | . . 1 Utility 17 | . 5 12 Device 2 | . . 2 Storage 3 | . 2 1 Processor . | . . . Hackware . | . . . Protection 12 | . 3 9 Artifact . | . . . Weapon 3 | . 2 1 Energy Gun . | . . . Energy Cannon . | . . . Ballistic Gun 1 | . . 1 Ballistic Cannon 1 | . 1 . Launcher . | . . . Special Weapon . | . . . Impact Weapon . | . . . Slashing Weapon 1 | . 1 . Piercing Weapon . | . . . Special Melee Weapon . | . . . Unidentified Prototypes 1 | . . 1 Parts Lost 17 | . . 17 Power 2 | . . 2 Propulsion 4 | . . 4 Utility 10 | . . 10 Weapon 1 | . . 1 Highest Loss Streak 13 | . . 13 To Critical Strikes 1 | . . 1 Average Slot Usage (%) 81 | . 79 82 Engine 9 | . 7 10 Treads 2 | . . 3 Leg 17 | . 28 12 Device 5 | . . 9 Storage 7 | . 5 9 Protection 17 | . 20 16 Ballistic Gun 2 | . . 3 Ballistic Cannon 6 | . 7 5 Slashing Weapon 10 | . 9 11 Naked Turns . | . . . Heaviest Build 96 | . 93 96 Greatest Support 26 | 20 20 26 Greatest Overweight (x) 6 | . 4 6 Average Overweight (x) 1 | . . 1 Largest Inventory Capacity 25 | 5 25 25 Average Capacity 14 | 5 12 17 Most Carried 12 | . 8 12 Average Carried 5 | . 2 7 Final Capacity 25 | 5 25 10 Final Carried 10 | . 8 10 Class Distribution -------------------- 80% | Mutant 19% | Scavenger-Mutant Dominant Class ---------------- Mutant | -10/Materials Mutant | -9/Materials Resources | -11 -10 -9 ----------- Run | Yrd Mat Mat Matter Collected 548 | 181 80 287 Remotely . | . . . Salvage Created 1213 | . 184 1029 Parts 96 | . 14 82 Haulers Intercepted 3 | . 1 2 Recyclers Shooed 2 | . 1 1 Parts Field Recycled . | . . . Retrieved Matter . | . . . Parts Self-Destructed . | . . . Prevented . | . . . Kills | -11 -10 -9 ------- Run | Yrd Mat Mat Combat Hostiles Destroyed 21 | . 2 19 Melee 16 | . 2 14 Guns 4 | . . 4 Cannons 1 | . . 1 Classes Destroyed 10 | . 4 6 Worker 7 | . 1 6 Builder 4 | . . 4 Hauler 3 | . 1 2 Recycler 1 | . . 1 Mechanic 1 | . . 1 Operator 2 | . 1 1 Watcher 1 | . . 1 Swarmer 9 | . . 9 Grunt 8 | . 2 6 Sentry 4 | . . 4 Best Kill Streak 4 | . 2 4 Combat Bots Only 4 | . 1 4 Max Kills in Single Turn 1 | . 1 1 Gunslinging . | . . . Exploded . | . . . Melee 1 | . 1 1 Uniques/NPCs Destroyed . | . . . Combat | -11 -10 -9 -------- Run | Yrd Mat Mat Hostile Shots Fired 304 | . 5 299 Missed 68 | . 1 67 Damage Taken 2244 | . 42 2202 Core 406 | . . 406 Absorbed by Shields . | . . . Core Remaining (%) 100 | 100 100 . Volleys Fired 35 | . . 35 Largest 1 | . . 1 Hottest 35 | . . 35 Shots Fired 35 | . . 35 Gun 19 | . . 19 Cannon 16 | . . 16 Launcher . | . . . Special . | . . . Kinetic 35 | . . 35 Thermal . | . . . Explosive . | . . . Electromagnetic . | . . . Robot Hit Streak 6 | . . 6 Robot Miss Streak 2 | . . 2 Penetration Max . | . . . Secondary Targets . | . . . Shots Hit Robots 96 | . 7 89 Core Hits 40 | 1 4 35 Critical Kills 1 | . . 1 Critical Parts Destroyed . | . . . Critical Strikes 1 | . . 1 Destroy 1 | . . 1 Melee Attacks 177 | . 42 135 Impact . | . . . Slashing 177 | . 42 135 Piercing . | . . . Sneak Attacks 27 | . 4 23 Combat Hostiles . | . . . Follow-up Attacks . | . . . Damage Inflicted 2721 | 12 229 2480 Guns 214 | . . 214 Cannons 66 | . . 66 Explosions . | . . . Melee 2429 | . 229 2200 Ramming 12 | 12 . . Kinetic 280 | . . 280 Thermal . | . . . Explosive . | . . . Electromagnetic . | . . . Impact . | . . . Slashing 2429 | . 229 2200 Piercing . | . . . Highest Corruption 1 | . 1 . Average Corruption 1 | . 1 . Corruption Purged . | . . . Corruption Blocked . | . . . Effects 1 | . 1 . Data Loss (major) 1 | . 1 . Overload Shots . | . . . Overflow Damage 149 | . 31 118 Projectiles . | . . . Explosions . | . . . Melee 149 | . 31 118 Knockbacks 1 | . . 1 Impact . | . . . Kinetic 1 | . . 1 Secondary . | . . . Self-Inflicted Damage . | . . . Shots . | . . . Rammed . | . . . Targets Rammed 15 | 15 . . Kicked 15 | 15 . . Crushed . | . . . Highest Temperature 6 | . . 6 Average Temperature 5 | . . 5 Received Heat Transfer 531 | . 24 507 Siege Activations . | . . . Robots Corrupted . | . . . Combat Hostiles . | . . . Parts Fried . | . . . Impact Corruptions . | . . . Robots Melted . | . . . Combat Hostiles . | . . . Parts Melted . | . . . Heat Transferred . | . . . Parts Sabotaged . | . . . Parts Stolen . | . . . Parts Stripped . | . . . Power Chain Reactions . | . . . Alert | -11 -10 -9 ------- Run | Yrd Mat Mat Peak Influence 382 | . 107 382 Initial . | . . . Average 101 | . 54 136 Maximum Alert Level 1 | . . 1 Low Security (%) 89 | 100 100 82 Level 1 10 | . . 17 Level 2 . | . . . Level 3 . | . . . Level 4 . | . . . Level 5 . | . . . High Security . | . . . Max Security . | . . . Squads Dispatched 4 | . 1 3 Investigation . | . . . Extermination . | . . . Reinforcement 4 | . 1 3 Assault . | . . . Garrison . | . . . Intercept . | . . . Searches Triggered . | . . . Construction Impeded 1 | . . 1 Haulers Reinforced . | . . . Active Scanning Responses . | . . . Cargo Convoy Interrupts . | . . . Stealth | -11 -10 -9 --------- Run | Yrd Mat Mat Distress Signals 10 | . 1 9 Communications Jammed . | . . . Distress Signals . | . . . Times Spotted 49 | . 5 44 Peak Tracking Total 8 | . 2 8 Tactical Retreats 3 | . . 3 Traps | -11 -10 -9 ------- Run | Yrd Mat Mat Traps Triggered 1 | . 1 . Indirectly . | . . . Trap Hack Attempts . | . . . Triggered . | . . . Disarmed . | . . . Reprogrammed . | . . . Reused . | . . . Traps Extracted . | . . . Installed . | . . . Triggered . | . . . Machines | -11 -10 -9 ---------- Run | Yrd Mat Mat Machines Disabled 19 | . 5 14 Max in Single Turn 2 | . 1 2 Machines Repaired . | . . . Machines Dismantled . | . . . Machines Sabotaged . | . . . Overloaded Fab Kills . | . . . Hacking | -11 -10 -9 --------- Run | Yrd Mat Mat Machines Accessed 1 | . 1 . Terminals 1 | . 1 . Fabricators . | . . . Repair Stations . | . . . Recycling Units . | . . . Scanalyzers . | . . . Garrison Access . | . . . Total Hacks 1 | . 1 . Successful 1 | . 1 . Failed . | . . . Catastrophic . | . . . Database Lockouts . | . . . Manual . | . . . Terminals 1 | . 1 . Fabricators . | . . . Repair Stations . | . . . Recycling Units . | . . . Scanalyzers . | . . . Garrison Access . | . . . Terminal Hacks 1 | . 1 . Dispatch Records 1 | . 1 . Fabricator Hacks . | . . . Repair Station Hacks . | . . . Recycling Unit Hacks . | . . . Scanalyzer . | . . . Garrison Access Hacks . | . . . Unauthorized Hacks . | . . . Terminals . | . . . Fabricators . | . . . Repair Stations . | . . . Recycling Units . | . . . Scanalyzers . | . . . Garrison Access . | . . . Data Cores Recovered . | . . . Used . | . . . Hacking Detections . | . . . Full Trace Events . | . . . Feedback Events . | . . . Feedback Blocked . | . . . Robot Schematics Acquired . | . . . Robots Built . | . . . Authchips . | . . . Time . | . . . Total Robot Build Rating . | . . . Part Schematics Acquired . | . . . Parts Built . | . . . Authchips . | . . . Time . | . . . Total Part Build Rating . | . . . Parts Repaired . | . . . Time . | . . . Parts Recycled . | . . . Recycled Matter . | . . . Retrieved Matter . | . . . Retrieved Components . | . . . Parts Scanalyzed . | . . . Part Schematics Acquired . | . . . Parts Damaged . | . . . Bothacking | -11 -10 -9 ------------ Run | Yrd Mat Mat Used RIF Installer . | . . . Robots Hacked . | . . . Non-combat . | . . . Combat . | . . . Robot Hacks Applied . | . . . Relay Couplers Released . | . . . Fabnet Peak Effective % . | . . . Robots Rewired . | . . . Allies Hacked . | . . . Hacks Repelled . | . . . Allies | -11 -10 -9 -------- Run | Yrd Mat Mat Total Allies . | . . . Largest Group . | . . . Highest-Rated Group . | . . . Highest-Rated Ally . | . . . Total Orders . | . . . Ally Attacks . | . . . Total Damage . | . . . Kills . | . . . Allies Corrupted . | . . . Allies Melted . | . . . Intel | -11 -10 -9 ------- Run | Yrd Mat Mat Robot Analysis Total . | . . . Derelict Logs Recovered . | . . . Drone Launches . | . . . Drone Recoveries . | . . . Exploration | -11 -10 -9 ------------- Run | Yrd Mat Mat Turns Passed 2502 | 158 816 1528 Spaces Moved 948 | 122 399 427 Core 74 | 12 . 62 Treads 174 | . . 174 Legs 700 | 110 399 191 Wheels . | . . . Hover . | . . . Flight . | . . . Fastest Speed 50 | 50 120 50 Average Speed 191 | 113 168 234 Slowest Speed 400 | 120 400 400 Overloaded Moves . | . . . Propulsion Burnouts . | . . . Robots Hopped . | . . . Cave-ins Triggered . | . . . Exploration Rate (%) 29 | 4 49 36 Regions Visited 2 Branch Regions . Pre-discovered Areas . | . . . Known Exits Taken . | . . . Unknown Exits Taken 2 | 1 1 . Scrap Searched . | . . . Spaces Dug 24 | . 14 10 Terrain Destroyed 73 | . 14 59 Melee 24 | . 14 10 Projectile . | . . . AOE 49 | . . 49 Terrain Rammed . | . . . Walls Destroyed . | . . . Machines Disabled . | . . . Actions | -11 -10 -9 --------- Run | Yrd Mat Mat Total 1246 | 138 460 648 Wait 3 | . . 3 Move 946 | 121 398 427 Hop . | . . . Pick Up 23 | . 8 15 Fast Attach 20 | 2 7 11 Attach 9 | . 1 8 Detach 2 | . 1 1 Swap 4 | . . 4 Drop 12 | . 3 9 Fire 35 | . . 35 Melee 177 | . 42 135 Ram . | . . . Kick 15 | 15 . . Crush . | . . . Escape Stasis . | . . . Rewire . | . . . Trap . | . . . Miscellaneous . | . . . Route ------- -11/Scrapyard -10/Materials (discovered 2 exits: [*Mat] / [*Min]) -9/Materials (discovered 2 exits: [*Min] / [*Sto]) History --------- Turn | Location | Event 9 | -11/Scrapyard | Discovered new exit (range 15) 159 | -11/Scrapyard | Entered Materials 244 | -10/Materials | Discovered new exit (range 7) 318 | -10/Materials | Build established: Mutant 685 | -10/Materials | Discovered new exit (range 11) 975 | -10/Materials | Entered another Materials area 975 | -9/Materials | Evolved 2 slots: Utility x2 1632 | -9/Materials | Discovered new exit (range 16) 1824 | -9/Materials | Core integrity fell below 50% 1888 | -9/Materials | Lost 13 parts (2p3n7u1w) 2285 | -9/Materials | Core integrity fell below 20% 2301 | -9/Materials | Build established: Scavenger-Mutant 2362 | -9/Materials | Discovered new exit (range 7) 2503 | -9/Materials | Destroyed by G-34 Mercenary with Small Laser Last Messages --------------- 02416_ Terminal disabled. 02418_ K-01 Serf collects debris. 02419_ G-34 Mercenary destroyed. 02421_ K-01 Serf collects debris. 02433_ G-47 Trooper destroyed. 02433_ Lgt. Treads destroyed. 02434_ K-01 Serf collects debris. 02436_ Y-45 Defender destroyed. 02437_ Acquired 15 matter. 02438_ K-01 Serf collects debris. 02448_ G-34 Mercenary destroyed. 02451_ K-01 Serf collects debris. 02452_ Acquired Aluminum Leg. 02458_ K-01 Serf collects debris. 02491_ Insulated Plating destroyed. 02492_ R-06 Scavenger collects Heat Sink. 02492_ K-01 Serf collects debris. 02496_ R-06 Scavenger collects Sml. Laser. 02499_ R-06 Scavenger collects Imp. Heat Sink. 02501_ K-01 Serf collects debris. Map ----- +----------------------------------------------------+ | ???????????????????????##########???# #?#! # | | ???????????????????????# #???# """ #?# # | | ???????????????????????# #???# """ #?# % # | | ???????????????????????# * #???# " " #?# # | | ???????????????????????#!![ #???# ### # | | ???????????????????????# * #???# = # | | ???????????????????????# #???###+#### | | ???????????????????????# % ###### ### | | ???????????????????????# + | | ??????????????########?# ###### ### | | ?????????????## ##+########????#####?# | | ????????? #####???????????# | | ????????? < % !#???????????## | | ????????? !#????????????# | | ??????????##### ## #????????????# | | ??????????????# "!"!" ?# #????????????# | | ??????????????#""!"!"??# !!#????????????# | | ???????????????######??# !!#????????????# | | ??????????????????????## #####??#####?????# | | ??????????????????????# ##### #?????# | | ??????????????????????# % #?????? | | ??????????????????????# k ! #??????##### | | ??????????????????????# r %" #??????????? | | ??????????????????????# % ##### #??????????? | | ????????????????????#####g#####???#####??????????? | | ????????????????????# =%@! #??????????????????? | | ????????????????????# [ #??????????????????? | | ????????????????????# #??????????????????? | | ?????????????????#"S #??????????????????? | | ?????????????????#""" #??????????????????? | | ?????????????????# "" #??????????????????? | | ?????????????????#### ! #??????????????????? | | ????????????????????# #??????????????????? | | ????????????????????###########??????????????????? | | ?????????????????????????????????????????????????? | | ?????????????????????????????????????????????????? | | ?????????????????????????????????????????????????? | | ?????????????????????????????????????????????????? | | ?????????????????????????????????????????????????? | | ?????????????????????????????????????????????????? | | ?????????????????????????????????????????????????? | | ?????????????????????????????????????????????????? | | ?????????????????????????????????????????????????? | | ?????????????????????????????????????????????????? | | ?????????????????????????????????????????????????? | | ?????????????????????????????????????????????????? | | ?????????????????????????????????????????????????? | | ?????????????????????????????????????????????????? | | ?????????????????????????????????????????????????? | | ?????????????????????????????????????????????????? | +----------------------------------------------------+ Best States ------------- Heat Dissipation 28 Energy Generation 10 Energy Capacity 250 Matter Stores 300 Matter Capacity 300 Sight Range 16 Terrain Scan Density 10 Additional Mass Support 6 Armor Coverage 450 Resistance: EM 15 Evasion (%) 55 Recoil Reduction 1 Item Schematics ----------------- None Robot Schematics ------------------ None Fabricated ------------ Nothing Alien Tech Used ----------------- None Achievements -------------- None Challenges ------------ None Game ------ Seed TransportContainmentMatrix Manual? 0 Play Time 00:23:27 Cumulative 34.0 hours Start 2024.04.05 @ 11:37:03 End 2024.04.05 @ 12:40:06 Sessions 21 Manual Loads 0 Difficulty Rogue Special Mode None Game No. 97 Rogue 57 Adventurer 14 Explorer 26 Win Type - Total 0 Types 0/0/0/0/0/0/0/0/0 Lore% 23 Gallery% 31 Achievement% 27 Wizard Run 0 Options --------- Layout 0 ASCII 0 Keyboard 1 Movement Vi Keybinds 0 Fullscreen 1 Font 18/SmallcapsGlow Map View 76x50 Zoom Use 0% Tactical HUD 1 Map Filters NONE Filters NONE Steam 1 RUN: 8e59724b-75a9-4ebd-8775-bc2b1884ceda